fUSD/lending_fUSD_20240613
["ID","MTS","AMOUNT","RATE_DAILY","PERIOD"]
[329338682,1718258215254,-500.0,0.00031909,30]
[329338683,1718258215292,-500.0,0.00031909,30]
[329338684,1718258215347,-500.0,0.00031909,30]
[329338685,1718258215385,-500.0,0.00031909,30]
[329338686,1718258215443,-500.0,0.00031909,30]
[329338687,1718258215497,-500.0,0.00031909,30]
[329338688,1718258215540,-276.27000531,0.00031909,30]
[329338689,1718258215575,-501.85502829,0.00031909,30]
[329338690,1718258215619,-640.76988437,0.00031909,30]
[329338691,1718258215665,-500.0,0.00031909,30]
[329338692,1718258215724,-503.4173622,0.00031909,30]
[329338693,1718258215774,-632.56738146,0.00031909,30]
[329338694,1718258215814,-510.38108583,0.00031909,30]
[329338695,1718258215853,-515.54446573,0.00031909,30]
[329338696,1718258215896,-500.0,0.00031909,30]
[329338697,1718258215937,-500.0,0.00031909,30]
[329338698,1718258215996,-500.0,0.00031909,30]
[329338699,1718258216029,-543.54866188,0.00031909,30]
[329338700,1718258216063,-517.00935553,0.00031909,30]
[329338701,1718258216113,-501.69981675,0.00031909,30]
[329338702,1718258216146,-1355.77,0.00031909,30]
[329338703,1718258216203,-510.71429398,0.00031909,30]
[329338704,1718258216233,-1355.77,0.00031909,30]
[329338705,1718258216273,-515.98933464,0.00031909,30]
[329338706,1718258216329,-1355.77,0.00031909,30]
[329338707,1718258216364,-500.0,0.00031909,30]
[329338708,1718258216397,-1355.77,0.00031909,30]
[329338709,1718258216435,-500.0,0.00031909,30]
[329338710,1718258216495,-505.90317869,0.00031909,30]
[329338711,1718258216533,-1355.77,0.00031909,30]
[329338712,1718258216589,-509.86832408,0.00031909,30]
[329338713,1718258216631,-500.0,0.00031909,30]
[329338714,1718258216661,-1355.77,0.00031909,30]
[329338715,1718258216694,-502.91204912,0.00031909,30]
[329338716,1718258216733,-529.49846002,0.00031909,30]
[329338717,1718258216769,-1355.77,0.00031909,30]
[329338718,1718258216808,-1355.77,0.00031909,30]
[329338719,1718258216839,-1355.77,0.00031909,30]
[329338720,1718258216869,-546.05674172,0.00031909,30]
[329338721,1718258216901,-501.10422424,0.00031909,30]
[329338722,1718258216933,-512.29548759,0.00031909,30]
[329338723,1718258216965,-511.28585586,0.00031909,30]
[329338724,1718258217003,-1355.77,0.00031909,30]
[329338725,1718258217034,-504.18842987,0.00031909,30]
[329338726,1718258217065,-1355.77,0.00031909,30]
[329338727,1718258217097,-528.70406061,0.00031909,30]
[329338728,1718258217131,-1355.77,0.00031909,30]
[329338729,1718258217161,-1355.77,0.00031909,30]
[329338730,1718258217189,-1355.77,0.00031909,30]
[329338731,1718258217220,-500.0,0.00031909,30]
[329338732,1718258217251,-1355.77,0.00031909,30]
[329338733,1718258217300,-500.0,0.00031909,30]
[329338734,1718258217339,-1355.77,0.00031909,30]
[329338735,1718258217382,-521.13060375,0.00031909,30]
[329338736,1718258217416,-500.0,0.00031909,30]
[329338737,1718258217474,-1355.77,0.00031909,30]
[329338738,1718258217525,-500.0,0.00031909,30]
[329338739,1718258217564,-1355.77,0.00031909,30]
[329338740,1718258217602,-510.83953363,0.00031909,30]
[329338741,1718258217635,-500.0,0.00031909,30]
[329338742,1718258217666,-1355.77,0.00031909,30]
[329338743,1718258217812,-500.0,0.00031909,30]
[329338744,1718258217863,-500.0,0.00031909,30]
[329338745,1718258217895,-506.31888407,0.00031909,30]
[329338746,1718258217927,-500.60773994,0.00031909,30]
[329338747,1718258217962,-500.0,0.00031909,30]
[329338748,1718258218007,-1355.77,0.00031909,30]
[329338749,1718258218055,-508.40468916,0.00031909,30]
[329338750,1718258218086,-500.0,0.00031909,30]
[329338751,1718258218114,-1355.77,0.00031909,30]
[329338752,1718258218148,-500.0,0.00031909,30]
[329338753,1718258218186,-500.0,0.00031909,30]
[329338754,1718258218216,-500.0,0.00031909,30]
[329338755,1718258218246,-1355.77,0.00031909,30]
[329338756,1718258218278,-513.31585565,0.00031909,30]
[329338757,1718258218310,-500.0,0.00031909,30]
[329338758,1718258218348,-500.0,0.00031909,30]
[329338759,1718258218382,-1355.77,0.00031909,30]
[329338760,1718258218419,-500.0,0.00031909,30]
[329338761,1718258218488,-1355.77068603,0.00031909,30]
[329338762,1718258218531,-500.0,0.00031909,30]
[329338763,1718258218580,-500.0,0.00031909,30]
[329338764,1718258218616,-508.99400797,0.00031909,30]
[329338765,1718258218649,-500.0,0.00031909,30]
[329338766,1718258218684,-500.0,0.00031909,30]
[329338767,1718258218735,-500.0,0.00031909,30]
[329338768,1718258218791,-530.7091534,0.00031909,30]
[329338769,1718258218838,-500.0,0.00031909,30]
[329338770,1718258218872,-517.58061744,0.00031909,30]
[329338771,1718258218904,-469.41480075,0.00031909,30]
[329338772,1718258218936,-466.51719719,0.00031909,30]
[329338773,1718258218968,-502.61550792,0.00031909,30]
[329338774,1718258219001,-502.94130948,0.00031909,30]
[329338775,1718258219034,-528.26752462,0.00031909,30]
[329338776,1718258219070,-504.27933682,0.00031909,30]
[329338777,1718258219104,-508.48290708,0.00031909,30]
[329338778,1718258219136,-500.0,0.00031909,30]
[329338779,1718258219168,-500.0,0.00031909,30]
[329338780,1718258219198,-500.0,0.00031909,30]
[329338781,1718258219240,-500.0,0.00031909,30]
[329338782,1718258219273,-168.62824834,0.00031909,30]
[329338783,1718258219317,-500.0,0.00031909,30]
[329338784,1718258219359,-506.92069367,0.00031909,30]
[329338785,1718258219417,-500.0,0.00031909,30]
[329338786,1718258219456,-500.0,0.00031909,30]
[329338787,1718258219498,-619.88289984,0.00031909,30]
[329338788,1718258219546,-500.0,0.00031909,30]
[329338789,1718258219578,-527.53062163,0.00031909,30]
[329338790,1718258219610,-506.89910309,0.00031909,30]
[329338791,1718258219644,-500.0,0.00031909,30]
[329338792,1718258219680,-500.0,0.00031909,30]
[329338793,1718258219733,-213.22445479,0.00031909,30]
[329338794,1718258219767,-504.2050341,0.00031909,30]
[329338795,1718258219800,-504.44424024,0.00031909,30]
[329338796,1718258219852,-508.97212829,0.00031909,30]
[329338797,1718258219895,-502.95811919,0.00031909,30]
[329338798,1718258219927,-505.8725413,0.00031909,30]
[329338799,1718258219961,-510.78292543,0.00031909,30]
[329338800,1718258219996,-500.0,0.00031909,30]
[329338801,1718258220058,-500.0,0.00031909,30]
[329338802,1718258220097,-520.85805918,0.00031909,30]
[329338803,1718258220148,-500.0,0.00031909,30]
[329338804,1718258220201,-507.16420431,0.00031909,30]
[329338805,1718258220261,-505.11605389,0.00031909,30]
[329338806,1718258220332,-500.0,0.00031909,30]
[329338807,1718258220378,-500.0,0.00031909,30]
[329338808,1718258220425,-500.0,0.00031909,30]
[329338809,1718258220479,-500.0,0.00031909,30]
[329338810,1718258220527,-507.70836816,0.00031909,30]
[329338811,1718258220582,-510.65300656,0.00031909,30]
[329338812,1718258220632,-513.55481739,0.00031909,30]
[329338813,1718258220687,-500.0,0.00031909,30]
[329338814,1718258220726,-505.46453515,0.00031909,30]
[329338815,1718258220777,-508.62570805,0.00031909,30]
[329338816,1718258220836,-500.98468854,0.00031909,30]
[329338817,1718258220875,-500.0,0.00031909,30]
[329338818,1718258220904,-500.0,0.00031909,30]
[329338819,1718258220950,-500.0,0.00031909,30]
[329338820,1718258220988,-507.59048817,0.00031909,30]
[329338821,1718258221027,-506.40347214,0.00031909,30]
[329338822,1718258221062,-500.0,0.00031909,30]
[329338823,1718258221111,-430.56913886,0.00031909,30]
[329338824,1718258221157,-511.01677105,0.00031909,30]
[329338825,1718258221211,-500.0,0.00031909,30]
[329338826,1718258221283,-500.0,0.00031909,30]
[329338827,1718258221343,-298.3518818,0.00031909,30]
[329338828,1718258221501,-500.0,0.00031909,30]
[329338829,1718258221535,-641.97808333,0.00031909,30]
[329338830,1718258221565,-524.3167413,0.00031909,30]
[329338831,1718258221608,-501.64049542,0.00031909,30]
[329338832,1718258221643,-510.12325296,0.00031909,30]
[329338833,1718258221697,-502.3906942,0.00031909,30]
[329338834,1718258221763,-509.21345108,0.00031909,30]
[329338835,1718258221808,-514.23512157,0.00031909,30]
[329338836,1718258221855,-535.44240608,0.00031909,30]
[329338837,1718258221902,-500.0,0.00031909,30]
[329338838,1718258221940,-510.23240564,0.00031909,30]
[329338839,1718258221999,-504.89535704,0.00031909,30]
[329338840,1718258222035,-502.58499689,0.00031909,30]
[329338841,1718258222068,-512.89161458,0.00031909,30]
[329338842,1718258222114,-501.15381473,0.00031909,30]
[329338843,1718258222170,-503.96775878,0.00031909,30]
[329338844,1718258222219,-500.0,0.00031909,30]
[329338845,1718258222259,-294.09371145,0.00031909,30]
[329338846,1718258222307,-526.38627337,0.00031909,30]
[329338847,1718258222343,-500.0,0.00031909,30]
[329338848,1718258222379,-512.25479716,0.00031909,30]
[329338849,1718258222419,-426.71335263,0.00031909,30]
[329338850,1718258222473,-502.73150557,0.00031909,30]
[329338851,1718258222519,-500.0,0.00031909,30]
[329338852,1718258222555,-502.20705434,0.00031909,30]
[329338853,1718258222589,-626.67046524,0.00031909,30]
[329338854,1718258222625,-500.0,0.00031909,30]
[329338855,1718258222658,-500.0,0.00031909,30]
[329338856,1718258222690,-508.8189916,0.00031909,30]
[329338857,1718258222725,-500.0,0.00031909,30]
[329338858,1718258222775,-500.0,0.00031909,30]
[329338859,1718258222815,-500.0,0.00031909,30]
[329338860,1718258222852,-501.54292191,0.00031909,30]
[329338861,1718258222891,-500.0,0.00031909,30]
[329338862,1718258222931,-519.95638111,0.00031909,30]
[329338863,1718258222967,-500.0,0.00031909,30]
[329338864,1718258223004,-500.0,0.00031909,30]
[329338865,1718258223054,-500.0,0.00031909,30]
[329338866,1718258223098,-500.0,0.00031909,30]
[329338867,1718258223147,-500.0,0.00031909,30]
[329338868,1718258223181,-500.0,0.00031909,30]
[329338869,1718258223216,-500.0,0.00031909,30]
[329338870,1718258223251,-473.55772757,0.00031909,30]
[329338871,1718258223304,-511.60947014,0.00031909,30]
[329338872,1718258223341,-534.32363168,0.00031909,30]
[329338873,1718258223387,-500.0,0.00031909,30]
[329338874,1718258223427,-500.0,0.00031909,30]
[329338875,1718258223508,-500.0,0.00031909,30]
[329338876,1718258223549,-500.0,0.00031909,30]
[329338877,1718258223594,-500.0,0.00031909,30]
[329338878,1718258223631,-156.30963711,0.00031909,30]
[329338879,1718258223664,-517.83061021,0.00031909,30]
[329338880,1718258223710,-503.60911364,0.00031909,30]
[329338881,1718258223766,-486.23341157,0.00031909,30]
[329338882,1718258223860,-505.00580159,0.00031909,30]
[329338883,1718258223921,-500.0,0.00031909,30]
[329338884,1718258223974,-500.0,0.00031909,30]
[329338885,1718258224046,-169.30111408,0.00031909,30]
[329338886,1718258224079,-1021.56013122,0.00031909,30]
[329338887,1718258224131,-501.48393771,0.00031909,30]
[329338888,1718258224187,-511.7223083,0.00031909,30]
[329338889,1718258224227,-507.01844397,0.00031909,30]
[329338890,1718258224264,-500.0,0.00031909,30]
[329338891,1718258224301,-532.48574303,0.00031909,30]
[329338892,1718258224366,-500.0,0.00031909,30]
[329338893,1718258224403,-564.03309809,0.00031909,30]
[329338894,1718258224443,-513.03672646,0.00031909,30]
[329338895,1718258224500,-500.0,0.00031909,30]
[329338896,1718258224530,-500.68125291,0.00031909,30]
[329338897,1718258224561,-511.28663635,0.00031909,30]
[329338898,1718258224592,-500.0,0.00031909,30]
[329338899,1718258224626,-195.5702395,0.00031909,30]
[329338900,1718258224667,-500.0,0.00031909,30]
[329338901,1718258224706,-382.79437674,0.00031909,30]
[329338902,1718258224755,-515.74504111,0.00031909,30]
[329338903,1718258224847,-500.0,0.00031909,30]
[329338904,1718258224888,-505.7964949,0.00031909,30]
[329338905,1718258224920,-508.57381192,0.00031909,30]
[329338906,1718258224953,-500.0,0.00031909,30]
[329338907,1718258224983,-500.99399923,0.00031909,30]
[329338908,1718258225017,-412.6257404,0.00031909,30]
[329338909,1718258225147,-517.74810145,0.00031909,30]
[329338910,1718258225208,-534.98603702,0.00031909,30]
[329338911,1718258225247,-502.26881496,0.00031909,30]
[329338912,1718258225301,-500.0,0.00031909,30]
[329338913,1718258225351,-500.0,0.00031909,30]
[329338914,1718258225427,-510.96154383,0.00031909,30]
[329338915,1718258225517,-500.0,0.00031909,30]
[329338916,1718258225559,-510.04930966,0.00031909,30]
[329338917,1718258225611,-419.28556779,0.00031909,30]
[329338918,1718258225667,-502.74569604,0.00031909,30]
[329338919,1718258225729,-789.86277209,0.00031909,30]
[329338920,1718258225763,-476.32805534,0.00031909,30]
[329338921,1718258225801,-500.10683371,0.00031909,30]
[329338922,1718258225852,-514.1235097,0.00031909,30]
[329338923,1718258225919,-500.0,0.00031909,30]
[329338924,1718258225955,-500.75106548,0.00031909,30]
[329338925,1718258225996,-509.72557435,0.00031909,30]
[329338926,1718258226036,-500.0,0.00031909,30]
[329338927,1718258226073,-500.0,0.00031909,30]
[329338928,1718258226105,-500.0,0.00031909,30]
[329338929,1718258226140,-500.0,0.00031909,30]
[329338930,1718258226172,-500.0,0.00031909,30]
[329338931,1718258226204,-500.0,0.00031909,30]
[329338932,1718258226236,-500.0,0.00031909,30]
[329338933,1718258226270,-508.26971616,0.00031909,30]
[329338934,1718258226307,-500.0,0.00031909,30]
[329338935,1718258226348,-500.0,0.00031909,30]
[329338936,1718258226403,-154.37093415,0.00031909,30]
[329338937,1718258226445,-500.0,0.00031909,30]
[329338938,1718258226513,-270.46014062,0.00031909,30]
[329338939,1718258226554,-500.0,0.00031909,30]
[329338940,1718258226594,-500.0,0.00031909,30]
[329338941,1718258226626,-502.22541279,0.00031909,30]
[329338942,1718258226661,-367.41022354,0.00031909,30]
[329338943,1718258226697,-508.59462585,0.00031909,30]
[329338944,1718258226748,-505.03430944,0.00031909,30]
[329338945,1718258226789,-516.69843193,0.00031909,30]
[329338946,1718258226823,-500.0,0.00031909,30]
[329338947,1718258226883,-516.66904796,0.00031909,30]
[329338948,1718258226923,-500.0,0.00031909,30]
[329338949,1718258226957,-518.84277461,0.00031909,30]
[329338950,1718258226990,-506.1433597,0.00031909,30]
[329338951,1718258227023,-424.27316041,0.00031909,30]
[329338952,1718258227056,-500.0,0.00031909,30]
[329338953,1718258227089,-500.0,0.00031909,30]
[329338954,1718258227120,-581.05062061,0.00031909,30]
[329338955,1718258227152,-500.0,0.00031909,30]
[329338956,1718258227183,-500.0,0.00031909,30]
[329338957,1718258227216,-514.73061081,0.00031909,30]
[329338958,1718258227261,-500.0,0.00031909,30]
[329338959,1718258227307,-329.44744704,0.00031909,30]
[329338960,1718258227365,-510.17399538,0.00031909,30]
[329338961,1718258227408,-503.23364777,0.00031909,30]
[329338962,1718258227467,-500.0,0.00031909,30]
[329338963,1718258227507,-500.0,0.00031909,30]
[329338964,1718258227543,-500.0,0.00031909,30]
[329338965,1718258227575,-500.0,0.00031909,30]
[329338966,1718258227607,-510.37802917,0.00031909,30]
[329338967,1718258227652,-500.0,0.00031909,30]
[329338968,1718258227686,-509.07855955,0.00031909,30]
[329338969,1718258227728,-500.0,0.00031909,30]
[329338970,1718258227761,-500.0,0.00031909,30]
[329338971,1718258227794,-500.0,0.00031909,30]
[329338972,1718258227846,-520.66953174,0.00031909,30]
[329338973,1718258227925,-500.25327247,0.00031909,30]
[329338974,1718258227989,-244.31651207,0.00031909,30]
[329338975,1718258228028,-500.0,0.00031909,30]
[329338976,1718258228071,-508.44585638,0.00031909,30]
[329338977,1718258228119,-513.1643135,0.00031909,30]
[329338978,1718258228160,-500.0,0.00031909,30]
[329338979,1718258228205,-500.0,0.00031909,30]
[329338980,1718258228270,-500.0,0.00031909,30]
[329338981,1718258228313,-500.0,0.00031909,30]
[329338982,1718258228356,-500.0,0.00031909,30]
[329338983,1718258228396,-280.34193573,0.00031909,30]
[329338984,1718258228432,-500.0,0.00031909,30]
[329338985,1718258228487,-500.0,0.00031909,30]
[329338986,1718258228520,-500.0,0.00031909,30]
[329338987,1718258228582,-500.0,0.00031909,30]
[329338988,1718258228735,-500.0,0.00031909,30]
[329338989,1718258228791,-503.47495553,0.00031909,30]
[329338990,1718258228843,-500.0,0.00031909,30]
[329338991,1718258228876,-504.08176297,0.00031909,30]
[329338992,1718258228916,-599.01558459,0.00031909,30]
[329338993,1718258228988,-500.0,0.00031909,30]
[329338994,1718258229027,-514.2946573,0.00031909,30]
[329338995,1718258229076,-287.26,0.00031909,30]
[329338996,1718258229122,-510.18433669,0.00031909,30]
[329338997,1718258229163,-505.69968788,0.00031909,30]
[329338998,1718258229209,-497.43620132,0.00031909,30]
[329338999,1718258229247,-510.70352441,0.00031909,30]
[329339000,1718258229306,-500.0,0.00031909,30]
[329339001,1718258229338,-515.07513383,0.00031909,30]
[329339002,1718258229377,-509.34658385,0.00031909,30]
[329339003,1718258229425,-500.0,0.00031909,30]
[329339004,1718258229495,-500.0,0.00031909,30]
[329339005,1718258229533,-500.0,0.00031909,30]
[329339006,1718258229575,-500.0,0.00031909,30]
[329339007,1718258229614,-500.0,0.00031909,30]
[329339008,1718258229675,-504.51951889,0.00031909,30]
[329339009,1718258229751,-500.0,0.00031909,30]
[329339010,1718258229791,-512.60659801,0.00031909,30]
[329339011,1718258229838,-500.0,0.00031909,30]
[329339012,1718258229873,-505.85957196,0.00031909,30]
[329339013,1718258229927,-500.0,0.00031909,30]
[329339014,1718258229962,-590.69024933,0.00031909,30]
[329339015,1718258230009,-461.69028878,0.00031909,30]
[329339016,1718258230053,-500.84360564,0.00031909,30]
[329339017,1718258230090,-500.0,0.00031909,30]
[329339018,1718258230126,-500.0,0.00031909,30]
[329339019,1718258230163,-500.0,0.00031909,30]
[329339020,1718258230197,-514.77790378,0.00031909,30]
[329339021,1718258230237,-500.0,0.00031909,30]
[329339022,1718258230277,-509.20910266,0.00031909,30]
[329339023,1718258230370,-509.65790057,0.00031909,30]
[329339024,1718258230407,-500.0,0.00031909,30]
[329339025,1718258230443,-500.0,0.00031909,30]
[329339026,1718258230503,-500.0,0.00031909,30]
[329339027,1718258230549,-515.19585347,0.00031909,30]
[329339028,1718258230594,-500.0,0.00031909,30]
[329339029,1718258230626,-503.89735781,0.00031909,30]
[329339030,1718258230663,-510.48098323,0.00031909,30]
[329339031,1718258230705,-500.0,0.00031909,30]
[329339032,1718258230741,-500.0,0.00031909,30]
[329339033,1718258230772,-500.0,0.00031909,30]
[329339034,1718258230804,-500.0,0.00031909,30]
[329339035,1718258230835,-586.21159702,0.00031909,30]
[329339036,1718258230866,-500.0,0.00031909,30]
[329339037,1718258230897,-500.0,0.00031909,30]
[329339038,1718258230928,-296.60139188,0.00031909,30]
[329339039,1718258230959,-509.97747925,0.00031909,30]
[329339040,1718258230991,-503.26314413,0.00031909,30]
[329339041,1718258231023,-510.02339035,0.00031909,30]
[329339042,1718258231056,-500.0,0.00031909,30]
[329339043,1718258231091,-500.0,0.00031909,30]
[329339044,1718258231121,-510.5956878,0.00031909,30]
[329339045,1718258231151,-521.04650365,0.00031909,30]
[329339046,1718258231181,-225.02316307,0.00031909,30]
[329339047,1718258231212,-515.45523373,0.00031909,30]
[329339048,1718258231243,-426.60488251,0.00031909,30]
[329339049,1718258231274,-506.18829981,0.00031909,30]
[329339050,1718258231307,-507.01851357,0.00031909,30]
[329339051,1718258231338,-500.0,0.00031909,30]
[329339052,1718258231373,-535.16482828,0.00031909,30]
[329339053,1718258231405,-525.08648433,0.00031909,30]
[329339054,1718258231438,-500.0,0.00031909,30]
[329339055,1718258231484,-503.89488692,0.00031909,30]
[329339056,1718258231516,-500.0,0.00031909,30]
[329339057,1718258231546,-500.0,0.00031909,30]
[329339058,1718258231577,-502.39645336,0.00031909,30]
[329339059,1718258231610,-500.0,0.00031909,30]
[329339060,1718258231640,-500.0,0.00031909,30]
[329339061,1718258231672,-500.0,0.00031909,30]
[329339062,1718258231708,-500.0,0.00031909,30]
[329339063,1718258231741,-500.0,0.00031909,30]
[329339064,1718258231776,-500.0,0.00031909,30]
[329339065,1718258231924,-160.56995839,0.00031909,30]
[329339066,1718258231958,-508.39985589,0.00031909,30]
[329339067,1718258231990,-500.0,0.00031909,30]
[329339068,1718258232024,-500.0,0.00031909,30]
[329339069,1718258232059,-513.72971472,0.00031909,30]
[329339070,1718258232092,-165.09785527,0.00031909,30]
[329339071,1718258232124,-500.9926557,0.00031909,30]
[329339072,1718258232156,-510.92453821,0.00031909,30]
[329339073,1718258232188,-500.0,0.00031909,30]
[329339074,1718258232218,-500.0,0.00031909,30]
[329339075,1718258232254,-500.0,0.00031909,30]
[329339076,1718258232301,-602.10194949,0.00031909,30]
[329339077,1718258232342,-500.0,0.00031909,30]
[329339078,1718258232385,-512.54630887,0.00031909,30]
[329339079,1718258232420,-500.0,0.00031909,30]
[329339080,1718258232484,-501.38893215,0.00031909,30]
[329339081,1718258232525,-507.71847933,0.00031909,30]
[329339082,1718258232559,-520.26868849,0.00031909,30]
[329339083,1718258232596,-500.0,0.00031909,30]
[329339084,1718258232631,-293.27635079,0.00031909,30]
[329339085,1718258232663,-507.75721413,0.00031909,30]
[329339086,1718258232698,-500.0,0.00031909,30]
[329339087,1718258232733,-500.0,0.00031909,30]
[329339088,1718258232769,-566.85666704,0.00031909,30]
[329339089,1718258232799,-500.0,0.00031909,30]
[329339090,1718258232830,-504.16470514,0.00031909,30]
[329339091,1718258232866,-500.0,0.00031909,30]
[329339092,1718258232935,-558.75087905,0.00031909,30]
[329339093,1718258232976,-500.0,0.00031909,30]
[329339094,1718258233011,-500.0,0.00031909,30]
[329339095,1718258233048,-500.0,0.00031909,30]
[329339096,1718258233086,-500.0,0.00031909,30]
[329339097,1718258233119,-500.0,0.00031909,30]
[329339098,1718258233155,-507.52392305,0.00031909,30]
[329339099,1718258233189,-505.71016338,0.00031909,30]
[329339100,1718258233224,-498.72152282,0.00031909,30]
[329339101,1718258233274,-517.9371898,0.00031909,30]
[329339102,1718258233315,-522.24277311,0.00031909,30]
[329339103,1718258233363,-502.9908907,0.00031909,30]
[329339104,1718258233407,-500.0,0.00031909,30]
[329339105,1718258233440,-496.9608911,0.00031909,30]
[329339106,1718258233508,-500.0,0.00031909,30]
[329339107,1718258233562,-500.0,0.00031909,30]
[329339108,1718258233598,-177.00442924,0.00031909,30]
[329339109,1718258233641,-524.3589547,0.00031909,30]
[329339110,1718258233676,-505.08633067,0.00031909,30]
[329339111,1718258233723,-517.34168082,0.00031909,30]
[329339112,1718258233755,-508.43545971,0.00031909,30]
[329339113,1718258233794,-500.0,0.00031909,30]
[329339114,1718258233845,-521.59130103,0.00031909,30]
[329339115,1718258233887,-554.16560884,0.00031909,30]
[329339116,1718258233933,-200.17956803,0.00031909,30]
[329339117,1718258233991,-508.15555516,0.00031909,30]
[329339118,1718258234039,-509.09323951,0.00031909,30]
[329339119,1718258234078,-500.97502001,0.00031909,30]
[329339120,1718258234112,-503.95461363,0.00031909,30]
[329339121,1718258234145,-508.89166115,0.00031909,30]
[329339122,1718258234177,-511.40051665,0.00031909,30]
[329339123,1718258234212,-513.96892229,0.00031909,30]
[329339124,1718258234245,-502.5262109,0.00031909,30]
[329339125,1718258234328,-505.92933373,0.00031909,30]
[329339126,1718258234377,-502.78984788,0.00031909,30]
[329339127,1718258234451,-506.27326937,0.00031909,30]
[329339128,1718258234514,-509.62089854,0.00031909,30]
[329339129,1718258234581,-509.03317131,0.00031909,30]
[329339130,1718258234638,-502.5303861,0.00031909,30]
[329339131,1718258234699,-506.96202369,0.00031909,30]
[329339132,1718258234741,-507.89309924,0.00031909,30]
[329339133,1718258234833,-503.43938745,0.00031909,30]
[329339134,1718258234897,-501.31856141,0.00031909,30]
[329339135,1718258234934,-504.13759244,0.00031909,30]
[329339136,1718258234990,-500.0,0.00031909,30]
[329339137,1718258235040,-157.22931112,0.00031909,30]
[329339138,1718258235201,-528.74509915,0.00031909,30]
[329339139,1718258235243,-500.0,0.00031909,30]
[329339140,1718258235327,-500.0,0.00031909,30]
[329339141,1718258235372,-190.0,0.00031909,30]
[329339142,1718258235432,-500.0,0.00031909,30]
[329339143,1718258235527,-500.0,0.00031909,30]
[329339144,1718258235572,-502.35781404,0.00031909,30]
[329339145,1718258235624,-267.35872174,0.00031909,30]
[329339146,1718258235662,-190.0,0.00031909,30]
[329339147,1718258235701,-506.90274921,0.00031909,30]
[329339148,1718258235739,-504.88188772,0.00031909,30]
[329339149,1718258235773,-512.69152458,0.00031909,30]
[329339150,1718258235808,-500.0,0.00031909,30]
[329339151,1718258235842,-500.0,0.00031909,30]
[329339152,1718258235876,-435.05393294,0.00031909,30]
[329339153,1718258235907,-502.37172349,0.00031909,30]
[329339154,1718258235939,-500.0,0.00031909,30]
[329339155,1718258235975,-1511.54676641,0.00031909,30]
[329339156,1718258236008,-505.23283514,0.00031909,30]
[329339157,1718258236055,-303.9303541,0.00031909,30]
[329339158,1718258236094,-512.89525729,0.00031909,30]
[329339159,1718258236130,-504.79196393,0.00031909,30]
[329339160,1718258236179,-509.49572648,0.00031909,30]
[329339161,1718258236232,-500.81211065,0.00031909,30]
[329339162,1718258236279,-504.74135435,0.00031909,30]
[329339163,1718258236327,-500.0,0.00031909,30]
[329339164,1718258236389,-454.05999521,0.00031909,30]
[329339165,1718258236444,-575.22420085,0.00031909,30]
[329339166,1718258236506,-509.63292992,0.00031909,30]
[329339167,1718258236545,-500.0,0.00031909,30]
[329339168,1718258236588,-625.97090569,0.00031909,30]
[329339169,1718258236631,-503.37966398,0.00031909,30]
[329339170,1718258236670,-506.34687376,0.00031909,30]
[329339171,1718258236709,-505.97095531,0.00031909,30]
[329339172,1718258236740,-620.25345352,0.00031909,30]
[329339173,1718258236776,-621.10618442,0.00031909,30]
[329339174,1718258236817,-500.0,0.00031909,30]
[329339175,1718258236864,-500.0,0.00031909,30]
[329339176,1718258236916,-500.0,0.00031909,30]
[329339177,1718258236953,-500.0,0.00031909,30]
[329339178,1718258236992,-500.0,0.00031909,30]
[329339179,1718258237039,-166.1476604,0.00031909,30]
[329339180,1718258237082,-500.0,0.00031909,30]
[329339181,1718258237115,-500.0,0.00031909,30]